fUSD/lending_fUSD_20240125
["ID","MTS","AMOUNT","RATE_DAILY","PERIOD"]
[312774483,1706206234435,-155.12126467,0.00022538,2]
[312774484,1706206234444,-155.10238437,0.00022538,2]
[312774485,1706206234453,-304.45979647,0.00022538,2]
[312774486,1706206234462,-155.31157241,0.00022538,2]
[312774487,1706206234472,-2021.25442929,0.00022538,2]
[312774488,1706206234481,-366.02277432,0.00022538,2]
[312774489,1706206234490,-172.09680919,0.00022538,2]
[312774490,1706206234499,-221.40319185,0.00022538,2]
[312774491,1706206234509,-566.66190132,0.00022538,2]
[312774492,1706206234518,-939.25271979,0.00022538,2]
[312774493,1706206234527,-183.60060641,0.00022538,2]
[312774494,1706206234537,-1022.91848257,0.00022538,2]
[312774495,1706206234550,-2303.11339718,0.00022538,2]
[312774496,1706206234559,-2136.71947033,0.00022538,2]
[312774497,1706206234570,-306.11469835,0.00022538,2]
[312774498,1706206234579,-375.75908002,0.00022538,2]
[312774499,1706206234589,-236.84590808,0.00022538,2]
[312774500,1706206234599,-235.08217382,0.00022538,2]
[312774501,1706206234608,-1054.70151802,0.00022538,2]
[312774502,1706206234617,-497.9111912,0.00022538,2]
[312774503,1706206234628,-157.79760794,0.00022538,2]
[312774504,1706206234638,-170.85453974,0.00022538,2]
[312774505,1706206234647,-521.65923347,0.00022538,2]
[312774506,1706206234656,-230.76633215,0.00022538,2]
[312774507,1706206234666,-698.8735926,0.00022539,2]
[312774508,1706206234676,-1004948.99566384,0.0002254,2]
[312774509,1706206234686,-554.85,0.00022553,2]
[312774510,1706206234696,-160.16425758,0.00022561,2]
[312774511,1706206234705,-176.54,0.00022636,2]
[312774512,1706206234715,-238.33,0.00022673,2]
[312774513,1706206234725,-160.16425758,0.00022674,2]
[312774514,1706206234736,-160.16425758,0.00022787,2]
[312774515,1706206234745,-449.6,0.00022872,2]
[312774516,1706206234755,-3840.0076,0.00022897,2]
[312774517,1706206234765,-500.0,0.00022898,2]
[312774518,1706206234774,-529.50460961,0.000229,2]
[312774519,1706206234785,-163.66174511,0.000229,2]
[312774520,1706206234796,-160.16425758,0.000229,2]
[312774521,1706206234806,-40886.5505,0.000229,2]
[312774522,1706206234815,-1102.82969075,0.000229,2]
[312774523,1706206234826,-1658.75884255,0.000229,2]
[312774524,1706206234835,-292.39211964,0.000229,2]
[312774525,1706206234845,-1178.12872526,0.00022996,2]
[312774526,1706206234854,-418.21791161,0.00022996,2]
[312774527,1706206234865,-155.0,0.00022996,2]
[312774528,1706206234882,-226.33776838,0.00022996,2]
[312774529,1706206234893,-348.06286348,0.00022996,2]
[312774530,1706206234902,-176.55976016,0.00022996,2]
[312774531,1706206234912,-155.0,0.00022996,2]
[312774532,1706206234923,-218.2736471,0.00022996,2]
[312774533,1706206234936,-246.78899767,0.00022996,2]
[312774534,1706206234948,-355.01316218,0.00022996,2]
[312774535,1706206234957,-155.0,0.00022996,2]
[312774536,1706206234967,-487.24115174,0.00022996,2]
[312774537,1706206234976,-162.65321079,0.00022996,2]
[312774538,1706206234985,-204.27170755,0.00022996,2]
[312774539,1706206234994,-155.0,0.00022996,2]
[312774540,1706206235003,-155.50216158,0.00022996,2]
[312774541,1706206235012,-155.60727124,0.00022996,2]
[312774542,1706206235021,-155.0,0.00022996,2]
[312774543,1706206235031,-155.0,0.00022996,2]
[312774544,1706206235040,-155.19155757,0.00022996,2]
[312774545,1706206235050,-155.0,0.00022996,2]
[312774546,1706206235059,-524.30007126,0.00022996,2]
[312774547,1706206235068,-155.11046498,0.00022996,2]
[312774548,1706206235077,-155.27629146,0.00022996,2]
[312774549,1706206235086,-197.13116572,0.00022996,2]
[312774550,1706206235096,-250.66764355,0.00022996,2]
[312774551,1706206235105,-199.52500903,0.00022996,2]
[312774552,1706206235114,-265.85689275,0.00022996,2]
[312774553,1706206235124,-155.20306406,0.00022996,2]
[312774554,1706206235133,-155.0,0.00022996,2]
[312774555,1706206235142,-532.21210601,0.00022996,2]
[312774556,1706206235151,-167.96801762,0.00022996,2]
[312774557,1706206235161,-155.0,0.00022996,2]
[312774558,1706206235170,-155.0,0.00022996,2]
[312774559,1706206235179,-245.26780635,0.00022996,2]
[312774560,1706206235189,-160.88730639,0.00022996,2]
[312774561,1706206235198,-165.07307558,0.00022996,2]
[312774562,1706206235208,-238.49764122,0.00022996,2]
[312774563,1706206235221,-414.1012816,0.00022996,2]
[312774564,1706206235230,-155.0,0.00022996,2]
[312774565,1706206235240,-155.0,0.00022996,2]
[312774566,1706206235250,-155.0,0.00022996,2]
[312774567,1706206235259,-314.71110376,0.00022996,2]
[312774568,1706206235268,-207.78272895,0.00022996,2]
[312774569,1706206235278,-155.08246184,0.00022996,2]
[312774570,1706206235287,-158.44709816,0.00022996,7]
[312774571,1706206235296,-155.12316903,0.00022996,2]
[312774572,1706206235305,-310.6035145,0.00022996,2]
[312774573,1706206235314,-155.16626904,0.00022996,2]
[312774574,1706206235324,-155.0,0.00022996,2]
[312774575,1706206235333,-371.72065286,0.00022996,2]
[312774576,1706206235344,-155.36341877,0.00022996,2]
[312774577,1706206235353,-155.07910777,0.00022996,2]
[312774578,1706206235362,-582.84742818,0.00022996,2]
[312774579,1706206235371,-2818.03925739,0.00022997,2]
[312774580,1706206235382,-102712.02520389,0.00022998,2]
[312774581,1706206235396,-1553.06,0.00022998,2]
[312774582,1706206235407,-25220.1733113,0.00022998,2]
[312774583,1706206235417,-156.79778886,0.00022998,2]
[312774584,1706206235426,-363.71579779,0.00022998,2]
[312774585,1706206235436,-651.76209495,0.00022998,2]
[312774586,1706206235445,-204.28991244,0.00022998,2]
[312774587,1706206235455,-633.84130694,0.00022998,2]
[312774588,1706206235465,-230.8679186,0.00022998,10]
[312774589,1706206235475,-1026.14511945,0.00022999,2]
[312774590,1706206235510,-5404.96233349,0.00022999,2]
[312774591,1706206235522,-16398.30073846,0.00022999,2]
[312774592,1706206235533,-433.04686391,0.00022999,2]
[312774593,1706206238032,-330.72793259,0.000229,2]
[312774594,1706206238042,-34912.71002541,0.00022999,2]
[312774595,1706206238051,-434.97763282,0.00022999,2]
[312774596,1706206238061,-500.0,0.00022999,2]
[312774597,1706206238070,-500.0,0.00022999,2]
[312774598,1706206238079,-500.0,0.00022999,2]
[312774599,1706206238089,-500.0,0.00022999,2]
[312774600,1706206238098,-218.55834956,0.00022999,2]
[312774601,1706206238287,-500.0,0.00022999,2]
[312774602,1706206238297,-500.0,0.00022999,2]
[312774603,1706206238306,-500.0,0.00022999,2]
[312774604,1706206238315,-500.0,0.00022999,2]
[312774605,1706206238324,-500.0,0.00022999,2]
[312774606,1706206238333,-442.50048208,0.00022999,2]
[312774607,1706206238343,-500.0,0.00022999,2]
[312774608,1706206238352,-507.62459355,0.00022999,2]
[312774609,1706206238361,-200.0,0.00022999,2]
[312774610,1706206238370,-500.0,0.00022999,2]
[312774611,1706206238380,-500.0,0.00022999,2]
[312774612,1706206238389,-500.0,0.00022999,2]
[312774613,1706206238398,-500.0,0.00022999,2]
[312774614,1706206238407,-392.0,0.00022999,2]
[312774615,1706206238416,-500.0,0.00022999,2]
[312774616,1706206238426,-500.0,0.00022999,2]
[312774617,1706206238435,-200.0,0.00022999,2]
[312774618,1706206238444,-500.0,0.00022999,2]
[312774619,1706206238453,-500.0,0.00022999,2]
[312774620,1706206238463,-500.0,0.00022999,2]
[312774621,1706206238472,-246.04962369,0.00022999,2]
[312774622,1706206238481,-500.0,0.00022999,2]
[312774623,1706206238490,-311.65153023,0.00022999,2]
[312774624,1706206238499,-500.0,0.00022999,2]
[312774626,1706206238509,-568.62134192,0.00022999,2]
[312774628,1706206238518,-200.43419482,0.00022999,2]
[312774630,1706206238527,-500.0,0.00022999,2]
[312774632,1706206238537,-500.0,0.00022999,2]
[312774634,1706206238546,-500.0,0.00022999,2]
[312774636,1706206238555,-500.0,0.00022999,2]
[312774639,1706206238564,-500.0,0.00022999,2]
[312774641,1706206238573,-500.0,0.00022999,2]
[312774643,1706206238582,-500.0,0.00022999,2]
[312774645,1706206238591,-500.0,0.00022999,2]
[312774647,1706206238600,-500.0,0.00022999,2]
[312774649,1706206238608,-500.0,0.00022999,2]
[312774651,1706206238617,-500.0,0.00022999,2]
[312774652,1706206238627,-500.0,0.00022999,2]
[312774655,1706206238638,-500.0,0.00022999,2]
[312774657,1706206238647,-500.0,0.00022999,2]
[312774658,1706206238657,-500.0,0.00022999,2]
[312774660,1706206238667,-500.0,0.00022999,2]
[312774662,1706206238676,-379.90764236,0.00022999,2]
[312774664,1706206238686,-447.18874136,0.00022999,2]
[312774666,1706206238695,-500.0,0.00022999,2]
[312774669,1706206238704,-500.0,0.00022999,2]
[312774671,1706206238713,-500.0,0.00022999,2]
[312774673,1706206238723,-500.0,0.00022999,2]
[312774675,1706206238732,-396.79515331,0.00022999,2]
[312774676,1706206238741,-500.0,0.00022999,2]
[312774678,1706206238750,-331.97928813,0.00022999,2]
[312774681,1706206238760,-323.9792067,0.00022999,2]
[312774683,1706206238769,-209.65463729,0.00022999,2]
[312774685,1706206238778,-605.14775201,0.00022999,2]
[312774687,1706206238787,-455.18278747,0.00022999,2]
[312774689,1706206238796,-500.0,0.00022999,2]
[312774691,1706206238805,-500.0,0.00022999,2]
[312774693,1706206238815,-500.0,0.00022999,2]
[312774695,1706206238824,-500.0,0.00022999,2]
[312774697,1706206238833,-500.0,0.00022999,2]
[312774699,1706206238842,-500.0,0.00022999,2]
[312774701,1706206238851,-500.0,0.00022999,2]
[312774703,1706206238860,-580.89535267,0.00022999,2]
[312774705,1706206238871,-500.0,0.00022999,2]
[312774706,1706206238881,-500.0,0.00022999,2]
[312774709,1706206238890,-500.0,0.00022999,2]
[312774711,1706206238900,-500.0,0.00022999,2]
[312774712,1706206238909,-500.0,0.00022999,2]
[312774714,1706206238920,-600.0,0.00022999,2]
[312774716,1706206238931,-500.0,0.00022999,2]
[312774718,1706206238940,-500.0,0.00022999,2]
[312774721,1706206238950,-500.0,0.00022999,2]
[312774723,1706206238960,-329.69005145,0.00022999,2]
[312774724,1706206238970,-269.27678671,0.00022999,2]
[312774727,1706206238979,-1457.76741907,0.00023,2]
[312774729,1706206238989,-26146.6794748,0.00023,2]
[312774731,1706206239001,-2034.02217726,0.00023,2]
[312774734,1706206239016,-2358.24166973,0.00023,2]
[312774740,1706206239072,-13671234.87608987,0.00023,2]
[312774743,1706206239082,-19156.27488788,0.00023,2]
[312774744,1706206239092,-4000732.53572234,0.00023,2]
[312774746,1706206239102,-1000.0,0.00023109,2]
[312774748,1706206239112,-330.0,0.0002313,2]
[312774750,1706206239121,-176.54,0.00023184,2]
[312774752,1706206239130,-847.81,0.00023245,2]
[312774753,1706206239140,-529.50460961,0.00023329,2]
[312774754,1706206239148,-165.04,0.0002336,2]
[312774755,1706206239157,-176.54,0.00023732,2]
[312774756,1706206239166,-529.50460961,0.00023757,2]
[312774757,1706206239175,-154.34,0.00023985,2]
[312774758,1706206239184,-847.81,0.00024046,2]
[312774759,1706206239193,-529.50460961,0.00024186,2]
[312774761,1706206239202,-176.54,0.0002428,2]
[312774763,1706206239212,-449.6,0.00024516,2]
[312774765,1706206239221,-529.50460961,0.00024614,2]
[312774767,1706206239230,-1000.0,0.00024657,2]
[312774769,1706206239238,-1076.41774944,0.00024657,2]
[312774771,1706206239247,-250.0,0.00024658,2]
[312774773,1706206239256,-176.54,0.00024828,2]
[312774774,1706206239266,-847.81,0.00024847,2]
[312774776,1706206239275,-450.0,0.00025,3]
[312774779,1706206239284,-529.50460961,0.00025043,2]
[312774781,1706206239293,-176.54,0.00025376,2]
[312774782,1706206239304,-529.50460961,0.00025471,2]
[312774784,1706206239315,-529.50460961,0.000259,2]
[312774786,1706206239324,-238.53069741,0.00025924,2]
[312774788,1706206239333,-1000.0,0.00025997,2]
[312774790,1706206239342,-500.0,0.00026,2]
[312774792,1706206239350,-449.6,0.00026159,2]
[312774794,1706206239359,-862.22,0.00026575,2]
[312774796,1706206239368,-1293.33,0.00026575,2]
[312774798,1706206239377,-500.0,0.00027,3]
[312774800,1706206239387,-298.76,0.00027397,2]
[312774802,1706206239396,-155.0,0.000275,2]
[312774804,1706206239405,-298.76,0.00027686,2]
[312774806,1706206239414,-449.6,0.00027803,2]
[312774808,1706206239423,-298.76,0.00027974,2]
[312774810,1706206239432,-556.02380392,0.00028,2]
[312774812,1706206239442,-298.76,0.00028262,2]
[312774814,1706206239451,-165.04,0.00028318,2]
[312774817,1706206239460,-298.76,0.00028551,2]
[312774819,1706206239469,-154.34,0.00028764,2]
[312774821,1706206239478,-298.76,0.00028839,2]
[312774823,1706206239487,-1000.0,0.00028886,2]
[312774825,1706206239495,-498.91239264,0.00029,15]
[312774826,1706206239504,-550.0,0.00029,3]
[312774828,1706206239513,-298.76,0.00029128,2]
[312774830,1706206239522,-298.76,0.00029416,2]
[312774832,1706206239532,-449.6,0.00029447,2]
[312774835,1706206239541,-156.2400072,0.000295,3]
[312774837,1706206239550,-298.76,0.00029704,2]
[312774838,1706206239559,-280.56,0.00029781,2]
[312774840,1706206239568,-298.76,0.00029993,2]
[312774842,1706206239577,-155.0,0.0003,2]
[312774844,1706206239587,-23427.94796947,0.0003,4]
[312774847,1706206239597,-5845.39630101,0.0003,4]
[312774849,1706206239606,-192.76043451,0.0003,2]
[312774851,1706206239615,-9652.53351491,0.0003,2]
[312774853,1706206239623,-692.52631931,0.0003,2]
[312774855,1706206239632,-45536.370379,0.0003,4]
[312774857,1706206239641,-1000.0,0.0003,2]
[312774858,1706206239650,-1150.73991125,0.000301,2]
[312774860,1706206239659,-154.4,0.00030137,2]
[312774862,1706206239669,-298.76,0.00030281,2]
[312774864,1706206239679,-298.76,0.00030569,2]
[312774867,1706206239690,-602.00595599,0.000308,2]
[312774869,1706206239699,-298.76,0.00030858,2]
[312774871,1706206239711,-15936.46897682,0.000309,2]
[312774873,1706206239720,-330.0,0.00031,4]
[312774875,1706206239729,-7618.25337232,0.00031,2]
[312774877,1706206239738,-370.42091346,0.00031,2]
[312774879,1706206239746,-600.0,0.00031,3]
[312774881,1706206239755,-298.76,0.00031146,2]
[312774883,1706206239764,-298.76,0.00031435,2]
[312774885,1706206239773,-180.0,0.00031644,2]
[312774887,1706206239782,-197.92,0.00031644,2]
[312774889,1706206239791,-15470.55,0.000317,2]
[312774891,1706206239800,-298.76,0.00031723,2]
[312774893,1706206239809,-1000.0,0.00031774,2]
[312774895,1706206239818,-249701.741886,0.000318,3]
[312774897,1706206239827,-263.89358247,0.00032,2]
[312774899,1706206239836,-979.77442295,0.00032,4]
[312774901,1706206239845,-298.76,0.00032011,2]
[312774903,1706206239854,-150.0,0.000322,2]
[312774905,1706206239863,-298.76,0.000323,2]
[312774907,1706206239875,-298.76,0.00032588,2]
[312774909,1706206239885,-298.76,0.00032877,2]
[312774911,1706206239894,-186.53,0.00032877,2]
[312774913,1706206239903,-161.56,0.00032877,15]
[312774915,1706206239912,-2136.77629159,0.00033,4]
[312774917,1706206239922,-650.0,0.00033,3]
[312774919,1706206239931,-154.34,0.00033543,2]
[312774921,1706206239941,-193.12631424,0.000338,4]
[312774923,1706206239951,-1000.0,0.00034,4]
[312774925,1706206239960,-506.61948755,0.00034,4]
[312774927,1706206239969,-1000.0,0.00034663,2]
[312774929,1706206239978,-940.0,0.00034703,5]
[312774931,1706206239987,-4184.63485197,0.000349,2]
[312774933,1706206239995,-521.14708943,0.000349,2]
[312774935,1706206240013,-521.14708942,0.000349,2]
[312774937,1706206240022,-521.14708942,0.000349,2]
[312774939,1706206240031,-521.14708942,0.000349,2]
[312774941,1706206240043,-521.14708942,0.000349,2]
[312774943,1706206240051,-15743.08896824,0.00035,7]
[312774945,1706206240060,-374.92675683,0.00035,2]
[312774947,1706206240070,-3900.0,0.00035,7]
[312774949,1706206240079,-700.0,0.00035,3]
[312774951,1706206240088,-157.357135,0.00035,2]
[312774953,1706206240097,-824.74,0.000357,7]
[312774955,1706206240106,-1463.43,0.000357,7]
[312774957,1706206240115,-7716.40416211,0.00036,30]
[312774959,1706206240124,-292.46824251,0.00037,7]
[312774961,1706206240134,-4809.00916968,0.00037,7]
[312774963,1706206240144,-310.02128018,0.00037,4]
[312774965,1706206240153,-750.0,0.00037,3]
[312774967,1706206240162,-521.14708942,0.00037441,2]
[312774969,1706206240171,-3867.63,0.000376,3]
[312774971,1706206240180,-11920.94072449,0.00037699,2]
[312774973,1706206240189,-153.13,0.000377,3]
[312774975,1706206240198,-153.13,0.000377,3]
[312774977,1706206240207,-153.13,0.000377,3]
[312774979,1706206240216,-153.13,0.000377,3]
[312774981,1706206240225,-153.13,0.000377,3]
[312774983,1706206240235,-153.13,0.000377,3]
[312774985,1706206240244,-153.13,0.000377,3]
[312774987,1706206240253,-153.13,0.000377,3]
[312774989,1706206240262,-153.13,0.000377,3]
[312774991,1706206240272,-153.13,0.000377,3]
[312774993,1706206240282,-153.13,0.000377,3]
[312774995,1706206240291,-153.13,0.000377,3]
[312774997,1706206240300,-153.13,0.000377,3]
[312774999,1706206240309,-153.13,0.000377,3]
[312775001,1706206240318,-862.22,0.00037808,2]
[312775003,1706206240327,-1293.33,0.00037808,2]
[312775005,1706206240336,-190461.16368236,0.0003788,2]
[312775007,1706206240345,-411.16579996,0.00037897,2]
[312775009,1706206240354,-490156.82256228,0.000379,2]
[312775011,1706206240363,-990.0,0.000379,30]
[312775013,1706206240372,-150.1,0.000379,2]
[312775015,1706206240381,-681993.982032,0.000379,3]
[312775017,1706206240390,-154.34,0.00038323,2]
[312775019,1706206240399,-150.0,0.00038356,2]
[312775021,1706206240408,-824.74,0.000387,7]
[312775023,1706206240417,-161.56,0.00038748,15]
[312775025,1706206240426,-2589.99608852,0.0003888,2]
[312775027,1706206240435,-2589.99608845,0.0003888,2]
[312775028,1706206240443,-2589.99608845,0.0003888,2]
[312775029,1706206240452,-2589.99608845,0.0003888,2]
[312775030,1706206240461,-2589.99608845,0.0003888,2]
[312775031,1706206240469,-2589.99608845,0.0003888,2]
[312775032,1706206240478,-2589.99608845,0.0003888,2]
[312775033,1706206240487,-2589.99608845,0.0003888,2]
[312775034,1706206240496,-2589.99608845,0.0003888,2]
[312775036,1706206240504,-2589.99608845,0.0003888,2]
[312775039,1706206240513,-197.02869702,0.00039,4]
[312775041,1706206240522,-701.12691554,0.00039,10]
[312775043,1706206240531,-975.79882434,0.00039,4]
[312775045,1706206240540,-800.0,0.00039,3]
[312775047,1706206240549,-1000.0,0.000393,15]
[312775049,1706206240559,-489.8598969,0.000395,4]
[312775051,1706206240568,-350.00006257,0.000399,4]
[312775053,1706206240577,-205.58289998,0.00039997,2]
[312775055,1706206240586,-155.00208604,0.0004,4]
[312775057,1706206240594,-2269.30418644,0.0004,4]
[312775059,1706206240604,-2678.17811978,0.0004,4]
[312775061,1706206240613,-126640.69779626,0.0004,4]
[312775063,1706206240622,-173.11243094,0.0004,4]
[312775065,1706206240631,-22022.85823354,0.0004,4]
[312775067,1706206240640,-8220.86729765,0.0004,5]
[312775069,1706206240649,-54264.43228568,0.0004,4]
[312775071,1706206240659,-1084.09238932,0.0004,4]
[312775073,1706206240668,-2485.35640415,0.0004,15]
[312775075,1706206240678,-824.74,0.000402,7]
[312775077,1706206240687,-521.14708942,0.00040441,5]
[312775079,1706206240696,-289.97043324,0.00040543,7]
[312775081,1706206240706,-419.6687907,0.00040603,8]
[312775083,1706206240715,-328.1921014,0.00040666,8]
[312775085,1706206240724,-1379.56829336,0.00040729,8]
[312775087,1706206240733,-1385.71633564,0.000408,13]
[312775089,1706206240743,-850.0,0.00041,3]
[312775091,1706206240753,-1463.43,0.000411,7]
[312775093,1706206240762,-189.12419255,0.00041519,4]
[312775095,1706206240772,-1722.78487438,0.00041519,15]
[312775097,1706206240781,-604.6619069,0.00041519,2]
[312775099,1706206240790,-421.20614068,0.00041519,4]
[312775101,1706206240799,-161.81736275,0.00041519,4]
[312775103,1706206240809,-824.74,0.000416,7]
[312775105,1706206240818,-354547.0674375,0.00041799,32]
[312775107,1706206240829,-548.39086467,0.00041799,120]
[312775109,1706206240838,-170.62580571,0.00041799,4]
[312775111,1706206240847,-840.85262393,0.00042,120]
[312775113,1706206240856,-923.72,0.00042,30]
[312775115,1706206240865,-212.0,0.00042,2]
[312775117,1706206240878,-900.0,0.00043,3]
[312775119,1706206240888,-154.34,0.00043102,2]
[312775121,1706206240897,-153.13,0.000432,4]
[312775123,1706206240906,-153.13,0.000432,4]
[312775125,1706206240917,-153.13,0.000432,4]
[312775127,1706206240926,-153.13,0.000432,4]
[312775130,1706206240936,-153.13,0.000432,4]
[312775132,1706206240945,-153.13,0.000432,4]
[312775134,1706206240958,-153.13,0.000432,4]
[312775136,1706206240970,-153.13,0.000432,4]
[312775138,1706206240980,-153.13,0.000432,4]
[312775140,1706206240990,-153.13,0.000432,4]
[312775141,1706206240999,-153.13,0.000432,4]
[312775143,1706206241013,-153.13,0.000432,4]
[312775144,1706206241022,-153.13,0.000432,4]
[312775145,1706206241031,-153.13,0.000432,4]
[312775146,1706206241040,-521.14708942,0.00043441,5]
[312775147,1706206241049,-161.56,0.00044618,15]
[312775148,1706206241059,-824.74,0.000448,7]
[312775149,1706206241068,-626155.9309196,0.00045,4]
[312775150,1706206241078,-950.0,0.00045,3]
[312775151,1706206241086,-521.14708942,0.00046441,5]
[312775152,1706206241096,-409.48282714,0.00046575,7]
[312775153,1706206241105,-520.30042821,0.00047,30]
[312775154,1706206241114,-1000.0,0.00047,3]
[312775155,1706206241122,-824.74,0.000474,7]
[312775156,1706206241132,-154.34,0.00047881,2]
[312775157,1706206241141,-157.09567325,0.00048354,30]
[312775158,1706206241150,-1463.43,0.000485,7]
[312775159,1706206241158,-153.13,0.000487,6]
[312775160,1706206241167,-153.13,0.000487,6]
[312775161,1706206241177,-153.13,0.000487,6]
[312775162,1706206241185,-153.13,0.000487,6]
[312775163,1706206241194,-153.13,0.000487,6]
[312775164,1706206241203,-153.13,0.000487,6]
[312775165,1706206241212,-153.13,0.000487,6]
[312775166,1706206241222,-153.13,0.000487,6]
[312775167,1706206241232,-153.13,0.000487,6]
[312775168,1706206241242,-153.13,0.000487,6]
[312775169,1706206241251,-153.13,0.000487,6]
[312775170,1706206241261,-153.13,0.000487,6]
[312775171,1706206241271,-153.13,0.000487,6]
[312775172,1706206241281,-153.13,0.000487,6]
[312775173,1706206241291,-824.74,0.00049,7]
[312775174,1706206241300,-862.22,0.00049041,2]
[312775175,1706206241309,-1293.33,0.00049041,2]
[312775176,1706206241319,-157.09567325,0.00049146,30]
[312775177,1706206241329,-155.0,0.00049315,4]
[312775178,1706206241338,-521.14708942,0.00049441,5]
[312775179,1706206241347,-28200.68425922,0.00049502,21]
[312775180,1706206241356,-6301.28131386,0.00049502,20]
[312775181,1706206241365,-3150.64065693,0.00049502,20]
[312775182,1706206241375,-11043.98639113,0.00049502,21]
[312775183,1706206241386,-2800.86461245,0.0005,10]
[312775184,1706206241395,-26892.80733379,0.0005,4]
[312775185,1706206241404,-2210.74490183,0.0005,5]
[312775186,1706206241414,-23770.0924896,0.0005,30]
[312775187,1706206241423,-1463.43,0.000501,7]
[312775188,1706206241432,-824.74,0.000502,7]
[312775189,1706206241442,-161.56,0.00050489,120]
[312775190,1706206241451,-150.42164345,0.00050855,60]
[312775191,1706206241460,-157.09567325,0.00050868,60]
[312775192,1706206241470,-151.14702409,0.00051,19]
[312775193,1706206241480,-151.14702409,0.00051,21]
[312775194,1706206241489,-151.14702409,0.00051,21]
[312775195,1706206241498,-151.14702409,0.00051,18]
[312775196,1706206241508,-151.14702409,0.00051,20]
[312775197,1706206241517,-151.14702409,0.00051,22]
[312775198,1706206241527,-151.14702409,0.00051,22]
[312775199,1706206241537,-151.14702409,0.00051,18]
[312775200,1706206241547,-151.14702409,0.00051,19]
[312775201,1706206241556,-151.14702409,0.00051,18]
[312775202,1706206241566,-157.09567325,0.00051344,60]
[312775203,1706206241575,-156.72521791,0.000515,60]
[312775204,1706206241584,-1463.43,0.000517,7]
[312775205,1706206241594,-824.74,0.000519,7]
[312775206,1706206241603,-2089.10649731,0.00052,2]
[312775207,1706206241613,-1000.0,0.00052,120]
[312775208,1706206241622,-150.0,0.00052054,120]
[312775209,1706206241631,-1080.25877403,0.00052054,2]
[312775210,1706206241640,-221.65,0.00052055,14]
[312775211,1706206241649,-151.0,0.00052055,14]
[312775212,1706206241659,-251.577734,0.00052055,14]
[312775213,1706206241668,-151.0,0.00052055,14]
[312775214,1706206241677,-151.0,0.00052055,14]
[312775215,1706206241687,-157.09567325,0.00052185,60]
[312775216,1706206241696,-521.14708942,0.00052441,14]
[312775217,1706206241706,-1661.1353,0.00052498,24]
[312775218,1706206241715,-3191.26397536,0.000526,2]
[312775219,1706206241724,-154.34,0.00052661,2]
[312775220,1706206241734,-350.0,0.00052739,120]
[312775221,1706206241744,-157.09567325,0.00052883,60]
[312775222,1706206241754,-200.0,0.00053,120]
[312775223,1706206241765,-157.09567325,0.00053089,60]
[312775224,1706206241775,-559.19325388,0.0005326,120]
[312775225,1706206241784,-157.09567325,0.000534,60]
[312775226,1706206241794,-354.13439621,0.00053424,120]
[312775227,1706206241804,-5000.0,0.00054,2]
[312775228,1706206241815,-1000.0,0.00054,120]
[312775229,1706206241825,-250.0,0.00054,120]
[312775230,1706206241835,-442.0,0.00054059,30]
[312775231,1706206241845,-290.0,0.00054059,30]
[312775232,1706206241854,-153.13,0.000542,7]
[312775233,1706206241863,-153.13,0.000542,7]
[312775234,1706206241876,-153.13,0.000542,7]
[312775235,1706206241886,-153.13,0.000542,7]
[312775236,1706206241899,-153.13,0.000542,7]
[312775237,1706206241909,-153.13,0.000542,7]
[312775238,1706206241919,-153.13,0.000542,7]